[Event "Live Chess"]
[Site "Chess.com"]
[Date "2023.09.16"]
[Round "-"]
[White "MagnusCarlos1996"]
[Black "Orionchess"]
[Result "0-1"]
[WhiteElo "1010"]
[BlackElo "1793"]
[TimeControl "900+5"]
[EndTime "16:30:27 PDT"]
[Termination "Orionchess venceu por desistência"]

1. e4 {[%clk 0:15:00.8]} 1... c5 {[%clk 0:14:59.6]} 2. Nf3 {[%clk 0:15:04.4]}
2... d6 {[%clk 0:14:59.9]} 3. Bb5+ {[%clk 0:15:07.7]} 3... Bd7 {[%clk
0:15:00.4]} 4. a4 {[%clk 0:15:11.7]} 4... a6 {[%clk 0:15:03.4]} 5. Bxd7+ {[%clk
0:15:10.9]} 5... Nxd7 {[%clk 0:15:07.2]} 6. O-O {[%clk 0:15:15.1]} 6... Ngf6
{[%clk 0:15:02]} 7. d3 {[%clk 0:15:18.9]} 7... g6 {[%clk 0:15:04.9]} 8. Bg5
{[%clk 0:15:11.6]} 8... Bg7 {[%clk 0:15:08.7]} 9. c3 {[%clk 0:15:13.7]} 9... Qb6
{[%clk 0:15:02.9]} 10. Qc2 {[%clk 0:15:11.5]} 10... O-O {[%clk 0:14:54.3]} 11.
Nbd2 {[%clk 0:15:14]} 11... Qc6 {[%clk 0:14:27.8]} 12. Rfe1 {[%clk 0:15:00.1]}
12... b5 {[%clk 0:14:25]} 13. h3 {[%clk 0:14:40.3]} 13... h6 {[%clk 0:13:23.8]}
14. Bf4 {[%clk 0:14:20.9]} 14... Kh7 {[%clk 0:13:20.2]} 15. e5 {[%clk
0:14:06.4]} 15... Nd5 {[%clk 0:13:18.2]} 16. Bh2 {[%clk 0:14:03.8]} 16... dxe5
{[%clk 0:13:06.6]} 17. Nxe5 {[%clk 0:13:56.5]} 17... Nxe5 {[%clk 0:13:09.4]} 18.
Bxe5 {[%clk 0:14:00.6]} 18... f6 {[%clk 0:13:12.3]} 19. Bg3 {[%clk 0:13:59.9]}
19... e5 {[%clk 0:13:15.9]} 20. Ra2 {[%clk 0:12:55.4]} 20... b4 {[%clk
0:13:00.7]} 21. c4 {[%clk 0:12:53.1]} 21... Ne7 {[%clk 0:12:48.9]} 22. b3 {[%clk
0:12:48.3]} 22... Nf5 {[%clk 0:12:46.2]} 23. Bh2 {[%clk 0:12:43]} 23... Nd4
{[%clk 0:12:48.7]} 24. Qd1 {[%clk 0:12:44.1]} 24... Rae8 {[%clk 0:12:42.1]} 25.
Nf1 {[%clk 0:12:30.8]} 25... f5 {[%clk 0:12:35.3]} 26. Ne3 {[%clk 0:12:28.7]}
26... e4 {[%clk 0:12:30.8]} 27. dxe4 {[%clk 0:12:03.8]} 27... Rxe4 {[%clk
0:12:16]} 28. f3 {[%clk 0:11:40.9]} 28... Re6 {[%clk 0:12:04.7]} 29. Nd5 {[%clk
0:11:10.5]} 29... Rxe1+ {[%clk 0:12:03.2]} 30. Qxe1 {[%clk 0:11:14.2]} 30... Re8
{[%clk 0:12:07.6]} 31. Qf1 {[%clk 0:10:40.8]} 31... g5 {[%clk 0:11:50.7]} 32.
Rd2 {[%clk 0:09:57.6]} 32... f4 {[%clk 0:10:20.5]} 33. Kh1 {[%clk 0:09:40.8]}
33... Re3 {[%clk 0:10:16]} 34. Rd3 {[%clk 0:09:30.3]} 34... Re6 {[%clk
0:09:54.1]} 35. Bg1 {[%clk 0:09:20.2]} 35... Ne2 {[%clk 0:09:50.5]} 36. Qb1
{[%clk 0:08:56.5]} 36... Kg8 {[%clk 0:09:29.6]} 37. Kh2 {[%clk 0:08:24.9]} 37...
Ng3 {[%clk 0:09:08.7]} 38. Bf2 {[%clk 0:07:52.5]} 38... Ne2 {[%clk 0:08:53.8]}
39. Qd1 {[%clk 0:07:18.8]} 39... Nc3 {[%clk 0:08:12.1]} 40. Nxc3 {[%clk
0:06:53.9]} 40... bxc3 {[%clk 0:08:09]} 41. Rd8+ {[%clk 0:06:53]} 41... Re8
{[%clk 0:07:36.1]} 42. Qd5+ {[%clk 0:06:13.7]} 42... Qxd5 {[%clk 0:07:38.9]} 43.
Rxe8+ {[%clk 0:06:17.6]} 43... Kf7 {[%clk 0:07:42.2]} 44. cxd5 {[%clk
0:06:21.5]} 44... Kxe8 {[%clk 0:07:46]} 45. Bxc5 {[%clk 0:06:23]} 45... Bf8
{[%clk 0:07:39.9]} 46. d6 {[%clk 0:06:15]} 46... Kd7 {[%clk 0:07:42]} 47. Ba3
{[%clk 0:06:16.8]} 47... Bxd6 {[%clk 0:07:44.6]} 48. Bc1 {[%clk 0:06:17.3]}
48... Bc5 {[%clk 0:07:45.1]} 49. g4 {[%clk 0:06:09.8]} 49... Be3 {[%clk
0:07:47.3]} 50. Bxe3 {[%clk 0:06:03]} 50... fxe3 {[%clk 0:07:50.4]} 51. Kg2
{[%clk 0:06:07.3]} 51... c2 {[%clk 0:07:53.8]} 0-1

[Event "Live Chess"]
[Site "Chess.com"]
[Date "2023.09.16"]
[Round "-"]
[White "mariabeatrizandrade"]
[Black "felipeurbano"]
[Result "1-0"]
[WhiteElo "776"]
[BlackElo "1169"]
[TimeControl "900+5"]
[EndTime "16:34:32 PDT"]
[Termination "mariabeatrizandrade venceu por xeque-mate"]

1. e4 {[%clk 0:15:02.7]} 1... e5 {[%clk 0:15:02.3]} 2. Nf3 {[%clk 0:15:06.5]}
2... Nc6 {[%clk 0:15:04.5]} 3. d4 {[%clk 0:15:09.8]} 3... exd4 {[%clk
0:15:01.4]} 4. Nxd4 {[%clk 0:15:13.3]} 4... Bc5 {[%clk 0:14:58.5]} 5. Nb3 {[%clk
0:15:15.4]} 5... Bb6 {[%clk 0:14:57.9]} 6. Nc3 {[%clk 0:15:18.2]} 6... Nf6
{[%clk 0:14:54.6]} 7. Be2 {[%clk 0:15:14.4]} 7... d6 {[%clk 0:14:46]} 8. O-O
{[%clk 0:15:17]} 8... O-O {[%clk 0:14:49.3]} 9. Be3 {[%clk 0:15:13.9]} 9... Bxe3
{[%clk 0:14:41.5]} 10. fxe3 {[%clk 0:15:16.2]} 10... Re8 {[%clk 0:14:42]} 11.
Bd3 {[%clk 0:15:12.7]} 11... Bg4 {[%clk 0:14:36.7]} 12. Qe1 {[%clk 0:15:03.5]}
12... Ne5 {[%clk 0:14:33.9]} 13. Nd5 {[%clk 0:14:32.2]} 13... Nxd5 {[%clk
0:13:55.3]} 14. exd5 {[%clk 0:14:30.7]} 14... c6 {[%clk 0:13:52.7]} 15. Be4
{[%clk 0:13:41.9]} 15... Nc4 {[%clk 0:13:25.9]} 16. dxc6 {[%clk 0:13:19]} 16...
Rxe4 {[%clk 0:13:17.1]} 17. cxb7 {[%clk 0:13:09.1]} 17... Rb8 {[%clk 0:13:16.2]}
18. Qf2 {[%clk 0:12:13.6]} 18... Ne5 {[%clk 0:13:02.1]} 19. Rad1 {[%clk
0:11:45.7]} 19... Rxb7 {[%clk 0:13:01.2]} 20. Rd4 {[%clk 0:11:40.7]} 20... d5
{[%clk 0:12:50.1]} 21. Nc5 {[%clk 0:11:34.4]} 21... Rxd4 {[%clk 0:11:27.2]} 22.
Nxb7 {[%clk 0:11:32.8]} 22... Qb6 {[%clk 0:11:07.1]} 23. exd4 {[%clk 0:11:19.9]}
23... Qxb7 {[%clk 0:11:02.4]} 24. dxe5 {[%clk 0:11:20.2]} 24... Qe7 {[%clk
0:11:01]} 25. Qd4 {[%clk 0:10:46]} 25... Be6 {[%clk 0:10:57.9]} 26. Rf3 {[%clk
0:10:30.7]} 26... a5 {[%clk 0:10:29.8]} 27. Ra3 {[%clk 0:10:03.6]} 27... Qc7
{[%clk 0:10:19.6]} 28. Qc3 {[%clk 0:09:48.2]} 28... Qb6+ {[%clk 0:10:02.8]} 29.
Kf1 {[%clk 0:09:33.9]} 29... h6 {[%clk 0:09:54.1]} 30. Rb3 {[%clk 0:09:28.3]}
30... Qa6+ {[%clk 0:09:52.3]} 31. Ke1 {[%clk 0:09:21.8]} 31... Bg4 {[%clk
0:09:23]} 32. Rb8+ {[%clk 0:09:11.1]} 32... Kh7 {[%clk 0:09:20.1]} 33. Qd3+
{[%clk 0:09:12.2]} 33... Qxd3 {[%clk 0:09:20.8]} 34. cxd3 {[%clk 0:09:15.7]}
34... Kg6 {[%clk 0:09:16.7]} 35. d4 {[%clk 0:09:14.7]} 35... Kf5 {[%clk
0:09:16.4]} 36. Rb5 {[%clk 0:09:05.2]} 36... Ke4 {[%clk 0:09:14.3]} 37. Rxa5
{[%clk 0:09:00.7]} 37... Be6 {[%clk 0:09:09.4]} 38. a4 {[%clk 0:08:54.8]} 38...
Kxd4 {[%clk 0:09:11.8]} 39. Ra8 {[%clk 0:08:46.8]} 39... Kc4 {[%clk 0:08:56.9]}
40. Rb8 {[%clk 0:08:48.9]} 40... d4 {[%clk 0:08:49.8]} 41. Kd2 {[%clk
0:08:47.1]} 41... g6 {[%clk 0:08:25.9]} 42. a5 {[%clk 0:08:49.9]} 42... Kc5
{[%clk 0:08:16.1]} 43. a6 {[%clk 0:08:52.5]} 43... Bd5 {[%clk 0:08:06.3]} 44. a7
{[%clk 0:08:30.3]} 44... Kc4 {[%clk 0:08:06.8]} 45. a8=Q {[%clk 0:08:27.7]}
45... Bxa8 {[%clk 0:08:10.1]} 46. Rxa8 {[%clk 0:08:31.5]} 46... Kd5 {[%clk
0:08:12.9]} 47. Rc8 {[%clk 0:08:29]} 47... Kxe5 {[%clk 0:08:15.5]} 48. b4 {[%clk
0:08:32.6]} 48... f5 {[%clk 0:08:13.9]} 49. b5 {[%clk 0:08:36.7]} 49... g5
{[%clk 0:08:15.2]} 50. b6 {[%clk 0:08:39.4]} 50... f4 {[%clk 0:08:16.1]} 51. b7
{[%clk 0:08:43.1]} 51... g4 {[%clk 0:08:19.4]} 52. b8=Q+ {[%clk 0:08:46.9]}
52... Ke4 {[%clk 0:08:21.8]} 53. Re8+ {[%clk 0:08:47]} 53... Kf5 {[%clk
0:08:23.7]} 54. Qe5+ {[%clk 0:08:49.8]} 54... Kg6 {[%clk 0:08:24]} 55. Rf8
{[%clk 0:08:46.3]} 55... f3 {[%clk 0:08:23.2]} 56. Qf6+ {[%clk 0:08:49.5]} 56...
Kh5 {[%clk 0:08:23.5]} 57. Qf5+ {[%clk 0:08:46.8]} 57... Kh4 {[%clk 0:08:25.6]}
58. Rh8 {[%clk 0:08:43.5]} 58... fxg2 {[%clk 0:08:20.3]} 59. Rxh6# {[%clk
0:08:44.7]} 1-0

[Event "Live Chess"]
[Site "Chess.com"]
[Date "2023.09.16"]
[Round "-"]
[White "isiskrakatoa"]
[Black "Ilisunesp"]
[Result "0-1"]
[WhiteElo "586"]
[BlackElo "1550"]
[TimeControl "900+5"]
[EndTime "16:37:05 PDT"]
[Termination "Ilisunesp venceu por xeque-mate"]

1. e4 {[%clk 0:14:51.7]} 1... c5 {[%clk 0:15:03.1]} 2. d4 {[%clk 0:14:51]} 2...
cxd4 {[%clk 0:15:06.9]} 3. Qxd4 {[%clk 0:14:53.3]} 3... Nc6 {[%clk 0:15:11.3]}
4. Qe3 {[%clk 0:14:48.9]} 4... e5 {[%clk 0:15:15.2]} 5. Nf3 {[%clk 0:14:46.5]}
5... d6 {[%clk 0:15:19.3]} 6. Bb5 {[%clk 0:14:45.5]} 6... Nf6 {[%clk 0:15:08.1]}
7. c4 {[%clk 0:14:47.2]} 7... Qc7 {[%clk 0:15:09.7]} 8. c5 {[%clk 0:14:49.8]}
8... dxc5 {[%clk 0:15:09.1]} 9. Bxc6+ {[%clk 0:14:53]} 9... bxc6 {[%clk
0:15:10.1]} 10. Nc3 {[%clk 0:14:49]} 10... Be7 {[%clk 0:15:13.8]} 11. Bd2 {[%clk
0:14:51.9]} 11... O-O {[%clk 0:15:15.9]} 12. O-O {[%clk 0:14:53.9]} 12... Ba6
{[%clk 0:15:17.2]} 13. Rfe1 {[%clk 0:14:42.2]} 13... Rab8 {[%clk 0:15:20.4]} 14.
Rab1 {[%clk 0:14:43.1]} 14... h6 {[%clk 0:15:16.6]} 15. Na4 {[%clk 0:14:46.8]}
15... c4 {[%clk 0:15:16.1]} 16. Nc5 {[%clk 0:14:46.1]} 16... Bc8 {[%clk
0:15:04.2]} 17. Bc3 {[%clk 0:14:21.3]} 17... Ng4 {[%clk 0:15:01.6]} 18. h3
{[%clk 0:14:14.2]} 18... Nxe3 {[%clk 0:15:05.3]} 19. Rxe3 {[%clk 0:14:16.3]}
19... Bxc5 {[%clk 0:15:09.2]} 20. Ree1 {[%clk 0:14:16.8]} 20... f6 {[%clk
0:15:10.2]} 21. b4 {[%clk 0:13:39]} 21... Bb6 {[%clk 0:14:56.4]} 22. g4 {[%clk
0:12:47.9]} 22... Be6 {[%clk 0:14:56.8]} 23. Nh4 {[%clk 0:12:05.9]} 23... Rbd8
{[%clk 0:14:57.1]} 24. Rbd1 {[%clk 0:12:06.4]} 24... Rxd1 {[%clk 0:15:00.4]} 25.
Rxd1 {[%clk 0:12:10.2]} 25... Rd8 {[%clk 0:15:05.1]} 26. Rxd8+ {[%clk 0:12:11]}
26... Qxd8 {[%clk 0:15:10]} 27. Nf5 {[%clk 0:12:11.3]} 27... Bxf5 {[%clk
0:15:13.6]} 28. gxf5 {[%clk 0:12:15.1]} 28... Qd1+ {[%clk 0:15:17.6]} 29. Kg2
{[%clk 0:12:18.4]} 29... Qd3 {[%clk 0:15:21.7]} 30. Be1 {[%clk 0:12:16.4]} 30...
Qe2 {[%clk 0:15:24.7]} 31. Bc3 {[%clk 0:12:17.4]} 31... Qxf2+ {[%clk 0:15:28.7]}
32. Kh1 {[%clk 0:12:19]} 32... Qf3+ {[%clk 0:15:28.7]} 33. Kh2 {[%clk
0:12:16.6]} 33... Bf2 {[%clk 0:15:33.3]} 34. h4 {[%clk 0:12:12.5]} 34... Qg3+
{[%clk 0:15:37.5]} 35. Kh1 {[%clk 0:12:16]} 35... Qg1# {[%clk 0:15:41.7]} 0-1

[Event "Live Chess"]
[Site "Chess.com"]
[Date "2023.09.16"]
[Round "-"]
[White "Orionchess"]
[Black "mariabeatrizandrade"]
[Result "1-0"]
[WhiteElo "1793"]
[BlackElo "776"]
[TimeControl "900+5"]
[EndTime "16:39:20 PDT"]
[Termination "Orionchess venceu por desistência"]

1. d4 {[%clk 0:14:57.2]} 1... Nf6 {[%clk 0:15:02.4]} 2. e3 {[%clk 0:15:00.5]}
2... e6 {[%clk 0:15:05.6]} 3. Bd3 {[%clk 0:15:04.1]} 3... d5 {[%clk 0:15:09.1]}
4. Nd2 {[%clk 0:15:07.8]} 4... c5 {[%clk 0:15:12.3]} 5. c3 {[%clk 0:15:11]} 5...
c4 {[%clk 0:15:14.8]} 6. Bc2 {[%clk 0:15:14.4]} 6... Nc6 {[%clk 0:15:16.4]} 7.
f4 {[%clk 0:15:18.4]} 7... Ne4 {[%clk 0:15:04.5]} 8. Nxe4 {[%clk 0:15:20]} 8...
dxe4 {[%clk 0:15:07]} 9. Bxe4 {[%clk 0:15:23.7]} 9... f5 {[%clk 0:15:07.8]} 10.
Bc2 {[%clk 0:15:22.9]} 10... Bd7 {[%clk 0:15:09.7]} 11. Nf3 {[%clk 0:15:26]}
11... Qe7 {[%clk 0:15:06.2]} 12. O-O {[%clk 0:15:30]} 12... O-O-O {[%clk
0:15:08.4]} 13. Qe2 {[%clk 0:15:31.2]} 13... Rg8 {[%clk 0:15:06.8]} 14. Qxc4
{[%clk 0:15:29.4]} 14... h6 {[%clk 0:14:59.1]} 15. Bxf5 {[%clk 0:15:31]} 15...
exf5 {[%clk 0:14:58.6]} 16. Qxg8 {[%clk 0:15:34]} 16... Qf6 {[%clk 0:14:46.2]}
17. Qc4 {[%clk 0:15:28.3]} 17... g5 {[%clk 0:14:41.4]} 18. Ne5 {[%clk
0:15:25.1]} 18... gxf4 {[%clk 0:14:13.9]} 19. Nxd7 {[%clk 0:15:15.8]} 19... Rxd7
{[%clk 0:14:11.6]} 20. exf4 {[%clk 0:15:19.1]} 20... Bd6 {[%clk 0:14:12]} 21. d5
{[%clk 0:15:12]} 21... Bc5+ {[%clk 0:14:09.2]} 22. Qxc5 {[%clk 0:15:14.2]} 22...
b6 {[%clk 0:13:58.2]} 23. Qxc6+ {[%clk 0:15:17.4]} 23... Qxc6 {[%clk 0:14:00.8]}
24. dxc6 {[%clk 0:15:20.9]} 1-0

[Event "Live Chess"]
[Site "Chess.com"]
[Date "2023.09.16"]
[Round "-"]
[White "nicolascristiano"]
[Black "ThiagoFantim"]
[Result "1/2-1/2"]
[WhiteElo "1557"]
[BlackElo "1663"]
[TimeControl "900+5"]
[EndTime "16:40:14 PDT"]
[Termination "Empate por repetição"]

1. d4 {[%clk 0:15:00.2]} 1... d5 {[%clk 0:15:03.3]} 2. Nf3 {[%clk 0:15:03.7]}
2... Bf5 {[%clk 0:15:05.4]} 3. c3 {[%clk 0:15:03.3]} 3... e6 {[%clk 0:15:09]} 4.
Bg5 {[%clk 0:15:05.9]} 4... Be7 {[%clk 0:15:10.7]} 5. Bxe7 {[%clk 0:15:09.7]}
5... Qxe7 {[%clk 0:15:15.6]} 6. Nbd2 {[%clk 0:15:11.7]} 6... Nf6 {[%clk
0:15:19.5]} 7. Qb3 {[%clk 0:15:14.3]} 7... c6 {[%clk 0:15:17.3]} 8. Nh4 {[%clk
0:15:17.3]} 8... Bg6 {[%clk 0:15:19.8]} 9. Nxg6 {[%clk 0:15:21.4]} 9... hxg6
{[%clk 0:15:24.7]} 10. Qc2 {[%clk 0:15:23.4]} 10... Nbd7 {[%clk 0:15:24.2]} 11.
e4 {[%clk 0:15:27.1]} 11... dxe4 {[%clk 0:15:24.5]} 12. Nxe4 {[%clk 0:15:31]}
12... Nxe4 {[%clk 0:15:28.7]} 13. Qxe4 {[%clk 0:15:35]} 13... Nf6 {[%clk
0:15:29.5]} 14. Qf3 {[%clk 0:15:23.4]} 14... g5 {[%clk 0:15:19.7]} 15. O-O-O
{[%clk 0:15:18.8]} 15... Nd5 {[%clk 0:15:13.1]} 16. Bc4 {[%clk 0:15:00.7]} 16...
b5 {[%clk 0:15:11.3]} 17. Bb3 {[%clk 0:15:04.4]} 17... a5 {[%clk 0:15:14.3]} 18.
Rde1 {[%clk 0:15:08.1]} 18... a4 {[%clk 0:15:16]} 19. Bc2 {[%clk 0:14:53.9]}
19... b4 {[%clk 0:15:11.1]} 20. c4 {[%clk 0:14:57.1]} 20... b3 {[%clk
0:15:00.8]} 21. Bb1 {[%clk 0:14:50.4]} 21... Nb4 {[%clk 0:14:51.8]} 22. a3
{[%clk 0:14:52.3]} 22... Na2+ {[%clk 0:14:54.6]} 23. Kd1 {[%clk 0:13:42.1]}
23... O-O {[%clk 0:14:54.9]} 24. Qe4 {[%clk 0:13:35.8]} 24... g6 {[%clk
0:14:56.4]} 25. f4 {[%clk 0:13:25.9]} 25... g4 {[%clk 0:14:57.4]} 26. h3 {[%clk
0:13:29.2]} 26... g3 {[%clk 0:14:59.5]} 27. h4 {[%clk 0:13:33.3]} 27... Rfd8
{[%clk 0:15:03]} 28. Ke2 {[%clk 0:13:33.9]} 28... c5 {[%clk 0:14:52.3]} 29. d5
{[%clk 0:13:25.9]} 29... Qd6 {[%clk 0:14:45.4]} 30. h5 {[%clk 0:13:22.5]} 30...
exd5 {[%clk 0:14:46.7]} 31. Qxd5 {[%clk 0:13:12]} 31... Re8+ {[%clk 0:14:44.5]}
32. Kf3 {[%clk 0:13:13.5]} 32... Qxd5+ {[%clk 0:13:57.8]} 33. cxd5 {[%clk
0:13:15.7]} 33... Red8 {[%clk 0:13:54.7]} 34. Be4 {[%clk 0:13:10.5]} 34... c4
{[%clk 0:13:44.6]} 35. hxg6 {[%clk 0:13:13.8]} 35... fxg6 {[%clk 0:13:48]} 36.
Bxg6 {[%clk 0:13:02.3]} 36... c3 {[%clk 0:13:50.7]} 37. bxc3 {[%clk 0:12:51.1]}
37... Nxc3 {[%clk 0:13:52.2]} 38. Re7 {[%clk 0:12:48.8]} 38... Nxd5 {[%clk
0:13:48.5]} 39. Rf7 {[%clk 0:12:45]} 39... Rab8 {[%clk 0:13:46.5]} 40. Rhh7
{[%clk 0:12:46.2]} 40... b2 {[%clk 0:13:35.2]} 41. Rhg7+ {[%clk 0:12:49]} 41...
Kh8 {[%clk 0:13:39.5]} 42. Rh7+ {[%clk 0:12:51.2]} 42... Kg8 {[%clk 0:13:43.5]}
43. Rfg7+ {[%clk 0:12:54.2]} 43... Kf8 {[%clk 0:13:47.5]} 44. Rf7+ {[%clk
0:12:53.3]} 44... Kg8 {[%clk 0:13:51.2]} 1/2-1/2

[Event "Live Chess"]
[Site "Chess.com"]
[Date "2023.09.16"]
[Round "-"]
[White "ThgDomingues"]
[Black "MAndrade_Marques"]
[Result "1-0"]
[WhiteElo "1510"]
[BlackElo "1629"]
[TimeControl "900+5"]
[EndTime "16:41:12 PDT"]
[Termination "ThgDomingues venceu por desistência"]

1. e4 {[%clk 0:14:57.2]} 1... e5 {[%clk 0:15:03.8]} 2. Bc4 {[%clk 0:14:47.7]}
2... Nc6 {[%clk 0:15:05.2]} 3. Nf3 {[%clk 0:14:51.7]} 3... Bc5 {[%clk
0:15:06.7]} 4. c3 {[%clk 0:14:55.5]} 4... d6 {[%clk 0:15:08.9]} 5. O-O {[%clk
0:14:59.5]} 5... Nf6 {[%clk 0:15:11.9]} 6. Re1 {[%clk 0:15:03.5]} 6... O-O
{[%clk 0:15:15.8]} 7. d3 {[%clk 0:15:07.8]} 7... h6 {[%clk 0:15:19]} 8. Nbd2
{[%clk 0:15:11.9]} 8... Be6 {[%clk 0:15:19.8]} 9. Bb5 {[%clk 0:15:14.9]} 9... a6
{[%clk 0:15:16.2]} 10. Ba4 {[%clk 0:15:18.8]} 10... b5 {[%clk 0:15:19.8]} 11.
Bc2 {[%clk 0:15:22.1]} 11... Bb6 {[%clk 0:15:12.5]} 12. Nf1 {[%clk 0:15:24.8]}
12... Ne7 {[%clk 0:15:15.4]} 13. Ng3 {[%clk 0:15:26.4]} 13... Ng6 {[%clk
0:15:18.3]} 14. d4 {[%clk 0:15:24.2]} 14... exd4 {[%clk 0:14:52.3]} 15. cxd4
{[%clk 0:15:29.1]} 15... Re8 {[%clk 0:13:55.7]} 16. Be3 {[%clk 0:14:39.8]} 16...
d5 {[%clk 0:13:57.2]} 17. e5 {[%clk 0:14:40.5]} 17... Nd7 {[%clk 0:13:49]} 18.
Qd2 {[%clk 0:14:23.6]} 18... Nh4 {[%clk 0:12:47.3]} 19. Bxh6 {[%clk 0:13:46.2]}
19... Nxf3+ {[%clk 0:12:49.9]} 20. gxf3 {[%clk 0:13:48.5]} 20... Qh4 {[%clk
0:12:09.3]} 21. Qg5 {[%clk 0:11:36.4]} 21... Qxh6 {[%clk 0:12:01.4]} 22. Qxh6
{[%clk 0:11:25]} 22... gxh6 {[%clk 0:12:04.8]} 23. Kh1 {[%clk 0:11:29.3]} 23...
Bxd4 {[%clk 0:12:06.1]} 24. Rg1 {[%clk 0:11:30.4]} 24... Bxf2 {[%clk 0:12:01.3]}
25. Rg2 {[%clk 0:11:30.2]} 25... Bxg3 {[%clk 0:11:56.1]} 26. Rxg3+ {[%clk
0:11:33.1]} 26... Kh8 {[%clk 0:11:57.4]} 27. Rag1 {[%clk 0:11:36.2]} 27... Nxe5
{[%clk 0:11:53.1]} 28. f4 {[%clk 0:11:30.4]} 28... Nc4 {[%clk 0:11:43]} 29. f5
{[%clk 0:11:33.8]} 29... Bd7 {[%clk 0:11:41]} 30. Rh3 {[%clk 0:11:37.4]} 30...
Kh7 {[%clk 0:10:46.4]} 31. f6+ {[%clk 0:11:39.4]} 31... Re4 {[%clk 0:10:50.3]}
32. Rg7+ {[%clk 0:11:31.9]} 1-0

[Event "Live Chess"]
[Site "Chess.com"]
[Date "2023.09.16"]
[Round "-"]
[White "ppsobral"]
[Black "generalhuxx99silva"]
[Result "0-1"]
[WhiteElo "1047"]
[BlackElo "1517"]
[TimeControl "900+5"]
[EndTime "16:42:30 PDT"]
[Termination "generalhuxx99silva venceu por desistência"]

1. d4 {[%clk 0:15:01.7]} 1... e6 {[%clk 0:15:03.1]} 2. Nf3 {[%clk 0:15:02.4]}
2... d5 {[%clk 0:15:06.1]} 3. Bf4 {[%clk 0:15:04.6]} 3... c5 {[%clk 0:15:03]} 4.
e3 {[%clk 0:15:03.7]} 4... Nc6 {[%clk 0:15:00.6]} 5. c3 {[%clk 0:15:03.6]} 5...
Nf6 {[%clk 0:15:00.7]} 6. h3 {[%clk 0:14:50.3]} 6... Be7 {[%clk 0:14:58.1]} 7.
Bb5 {[%clk 0:14:27.2]} 7... Qb6 {[%clk 0:14:53.5]} 8. Qa4 {[%clk 0:13:48.5]}
8... a6 {[%clk 0:14:43.6]} 9. Bxc6+ {[%clk 0:13:46.1]} 9... bxc6 {[%clk
0:14:45.2]} 10. O-O {[%clk 0:13:23.9]} 10... O-O {[%clk 0:14:46.9]} 11. Qc2
{[%clk 0:13:00.5]} 11... a5 {[%clk 0:14:41.4]} 12. Nbd2 {[%clk 0:12:34.6]} 12...
cxd4 {[%clk 0:14:30.8]} 13. cxd4 {[%clk 0:12:33.2]} 13... Ba6 {[%clk 0:14:07.9]}
14. Rfc1 {[%clk 0:12:05.9]} 14... Rac8 {[%clk 0:14:02.3]} 15. e4 {[%clk
0:10:39.2]} 15... Nxe4 {[%clk 0:13:47.2]} 16. Nxe4 {[%clk 0:10:35.1]} 16... dxe4
{[%clk 0:13:46.7]} 17. Qxe4 {[%clk 0:10:36.1]} 17... Qxb2 {[%clk 0:13:46.5]} 18.
Bg5 {[%clk 0:08:11.4]} 18... Bd6 {[%clk 0:12:55.8]} 19. Rab1 {[%clk 0:07:34.2]}
19... Qxa2 {[%clk 0:12:51.8]} 20. Rb6 {[%clk 0:05:14]} 20... f5 {[%clk
0:11:51.6]} 21. Qh4 {[%clk 0:03:29.9]} 21... Bb5 {[%clk 0:10:10.3]} 22. Rb7
{[%clk 0:02:10]} 22... Rc7 {[%clk 0:08:57.7]} 23. Rxc7 {[%clk 0:01:38]} 23...
Bxc7 {[%clk 0:09:02.6]} 24. Re1 {[%clk 0:00:44.3]} 24... Re8 {[%clk 0:08:53.1]}
25. Ne5 {[%clk 0:00:29]} 25... Bxe5 {[%clk 0:08:43.5]} 26. dxe5 {[%clk
0:00:20.7]} 26... g6 {[%clk 0:08:11.9]} 27. Bf6 {[%clk 0:00:15.2]} 27... Qd2
{[%clk 0:08:00.7]} 28. f3 {[%clk 0:00:07.3]} 28... a4 {[%clk 0:07:16.4]} 29. Kh2
{[%clk 0:00:10]} 29... c5 {[%clk 0:07:11.7]} 30. Bg5 {[%clk 0:00:11.7]} 30...
Qd4 {[%clk 0:06:49]} 31. Qh6 {[%clk 0:00:07.9]} 31... c4 {[%clk 0:06:37.4]} 32.
Bf6 {[%clk 0:00:11.2]} 32... Qd7 {[%clk 0:06:39.9]} 33. Rd1 {[%clk 0:00:12.4]}
33... Qc7 {[%clk 0:06:19]} 34. Rd6 {[%clk 0:00:08.2]} 34... c3 {[%clk
0:06:13.8]} 35. Rd3 {[%clk 0:00:05.5]} 35... Bxd3 {[%clk 0:05:57.4]} 36. g4
{[%clk 0:00:07.9]} 36... c2 {[%clk 0:05:53.4]} 37. Kg3 {[%clk 0:00:09.9]} 37...
c1=Q {[%clk 0:05:52.9]} 38. Bg5 {[%clk 0:00:13.7]} 38... Qg1+ {[%clk 0:05:25.9]}
0-1

[Event "Live Chess"]
[Site "Chess.com"]
[Date "2023.09.16"]
[Round "-"]
[White "L_lawliet_03"]
[Black "MatheusMPD"]
[Result "1-0"]
[WhiteElo "1547"]
[BlackElo "1599"]
[TimeControl "900+5"]
[EndTime "16:43:49 PDT"]
[Termination "L_lawliet_03 venceu por desistência"]

1. d4 {[%clk 0:14:59.8]} 1... Nf6 {[%clk 0:15:02.3]} 2. c4 {[%clk 0:15:00]} 2...
g6 {[%clk 0:15:06.1]} 3. Nc3 {[%clk 0:15:01.6]} 3... Bg7 {[%clk 0:15:10.6]} 4.
e4 {[%clk 0:15:04.1]} 4... d6 {[%clk 0:14:55]} 5. Nf3 {[%clk 0:15:05.8]} 5...
O-O {[%clk 0:14:58.6]} 6. Be2 {[%clk 0:15:01.1]} 6... c5 {[%clk 0:14:53.2]} 7.
O-O {[%clk 0:14:56.8]} 7... cxd4 {[%clk 0:14:33.5]} 8. Nxd4 {[%clk 0:14:59.9]}
8... Qb6 {[%clk 0:14:34.9]} 9. Nf3 {[%clk 0:14:26.7]} 9... Nc6 {[%clk
0:13:43.9]} 10. Qb3 {[%clk 0:13:48]} 10... Qxb3 {[%clk 0:13:25.2]} 11. axb3
{[%clk 0:13:50.5]} 11... Bg4 {[%clk 0:13:26.9]} 12. h3 {[%clk 0:13:47.5]} 12...
Bxf3 {[%clk 0:13:21.8]} 13. Bxf3 {[%clk 0:13:52.4]} 13... Nd4 {[%clk 0:13:20.9]}
14. Bg5 {[%clk 0:13:49.8]} 14... Nxb3 {[%clk 0:11:43.6]} 15. Ra3 {[%clk
0:13:39.2]} 15... Nc5 {[%clk 0:11:45.7]} 16. Rfa1 {[%clk 0:13:23.4]} 16... h6
{[%clk 0:11:09.1]} 17. Bxf6 {[%clk 0:12:52.1]} 17... Bxf6 {[%clk 0:11:08.7]} 18.
Rxa7 {[%clk 0:12:32.6]} 18... Rxa7 {[%clk 0:10:04.6]} 19. Rxa7 {[%clk
0:12:37.5]} 19... Kg7 {[%clk 0:09:59.5]} 20. b4 {[%clk 0:12:05.3]} 20... Nd3
{[%clk 0:09:41]} 21. Nd5 {[%clk 0:11:57.8]} 21... Bd4 {[%clk 0:09:31]} 22. Rxb7
{[%clk 0:11:51.7]} 22... Bxf2+ {[%clk 0:09:30.2]} 23. Kf1 {[%clk 0:11:38.1]}
23... Bh4 {[%clk 0:08:31.2]} 24. Bg4 {[%clk 0:10:39.6]} 24... e6 {[%clk
0:06:34.3]} 25. Bxe6 {[%clk 0:10:40.5]} 25... Be1 {[%clk 0:05:40.4]} 26. Bg4
{[%clk 0:10:25.3]} 26... Bg3 {[%clk 0:04:20.4]} 27. Rd7 {[%clk 0:10:11.5]} 27...
Re8 {[%clk 0:04:02.3]} 28. Bf3 {[%clk 0:10:02.5]} 28... Ne5 {[%clk 0:03:35.3]}
29. Rc7 {[%clk 0:09:21.8]} 29... Ra8 {[%clk 0:03:11.8]} 30. b5 {[%clk
0:08:23.8]} 30... Ra1+ {[%clk 0:02:01.1]} 31. Ke2 {[%clk 0:08:22.2]} 31... Ra2+
{[%clk 0:02:05.7]} 32. Kd1 {[%clk 0:08:25.7]} 32... Nxf3 {[%clk 0:01:04.5]} 33.
gxf3 {[%clk 0:08:25.6]} 33... Ra1+ {[%clk 0:01:06.6]} 34. Kc2 {[%clk 0:08:28]}
34... Ra3 {[%clk 0:01:03]} 35. b6 {[%clk 0:08:16.2]} 35... Ra8 {[%clk
0:00:54.5]} 36. b7 {[%clk 0:08:13.4]} 36... Rb8 {[%clk 0:00:57.6]} 37. Kb3
{[%clk 0:08:03.9]} 37... Bf2 {[%clk 0:00:39.2]} 38. Ka4 {[%clk 0:08:03.7]} 38...
Bc5 {[%clk 0:00:35]} 39. Kb5 {[%clk 0:08:01.3]} 1-0